bitfinex-derivatives/quotes_SOLF0:USTF0_20250606
["timestamp","ask_amount","ask_price","bid_price","bid_amount"]
[1749242552228,34.52,150.01,149.97,6.6635]
[1749242552428,41.1821,150.01,149.98,0.04481519]
[1749242552618,34.52,150.01,149.98,0.04481519]
[1749242553019,6.6625,150.0,149.98,0.04481519]
[1749242553617,6.6626,149.99,149.98,0.04481519]
[1749242553818,6.6626,149.99,149.95,7.25820057]
[1749242553819,7.25820057,150.0,149.91,7.25820057]
[1749242554027,7.25820057,150.0,149.93,7.25820057]
[1749242554230,6.6629,149.99,149.95,6.6644]
[1749242554834,6.70985807,149.98,149.96,0.04346678]
[1749242555034,34.5,149.97,149.96,0.04346678]
[1749242555426,34.5,149.97,149.87,46.23200057]
[1749242555427,34.5,149.97,149.87,11.71200057]
[1749242555628,7.25820057,149.94,149.87,11.71200057]
[1749242555823,41.1655,149.93,149.87,11.71200057]
[1749242556232,34.5,149.93,149.87,9.53820057]
[1749242556432,34.5,149.93,149.92,6.6658]
[1749242556832,0.04635876,149.94,149.91,7.25820057]
[1749242557539,0.04635876,149.94,149.93,6.6653]
[1749242559835,0.04635876,149.94,149.92,6.70943962]
[1749242560037,0.04635876,149.94,149.92,0.04383962]
[1749242560437,41.78455933,149.94,149.92,0.04383962]
[1749242560832,0.04635876,149.94,149.92,0.04383962]
[1749242561033,41.73820057,150.0,149.92,0.04383962]
[1749242561337,4.3687,150.03,149.87,2.28]
[1749242561338,7.25820057,149.96,149.87,2.28]
[1749242561537,7.25820057,149.94,149.87,2.28]
[1749242561733,34.48,149.93,149.87,2.28]
[1749242561934,0.04356609,149.91,149.89,0.04434768]
[1749242562438,0.04356609,149.91,149.9,6.6666]
[1749242564438,0.04356609,149.91,149.9,16.6666]
[1749242565933,0.04356609,149.91,149.9,10.0]
[1749242566140,6.70976609,149.91,149.9,10.0]
[1749242566443,0.04356609,149.91,149.9,10.0]
[1749242567449,6.70976609,149.91,149.9,10.0]
[1749242567643,0.04356609,149.91,149.83,4.5159]
[1749242567844,7.25820057,149.89,149.87,6.6676]
[1749242568147,41.73820057,149.89,149.87,6.6676]
[1749242568653,34.52621088,149.89,149.88,6.6675]
[1749242570041,34.52621088,149.89,149.88,16.6675]
[1749242570247,34.52621088,149.89,149.88,10.0]
[1749242571543,34.52621088,149.89,149.88,16.6675]
[1749242578049,1.088e-05,149.89,149.88,16.6675]
[1749242578453,1.088e-05,149.89,149.88,23.92570057]
[1749242581857,1.088e-05,149.89,149.88,16.6675]
[1749242584258,20.07,150.05,149.88,10.0]
[1749242584478,7.25820057,150.0,149.94,7.25820057]
[1749242584759,35.14,150.0,149.94,7.25820057]
[1749242584951,2.54188632,149.99,149.94,7.25820057]
[1749242585155,35.14,150.0,149.94,7.25820057]
[1749242585362,0.04170289,149.98,149.96,0.0504696]
[1749242585551,0.04170289,149.98,149.97,6.6635]
[1749242585862,2.59952598,149.98,149.97,6.6635]
[1749242586162,2.59952598,149.98,149.96,6.7142696]
[1749242586361,2.55782309,149.97,149.96,0.0504696]
[1749242586556,6.99962337,149.97,149.96,0.0504696]
[1749242586757,6.99962337,149.97,149.96,0.00887571]
[1749242587054,9.21823479,149.97,149.89,2.26]
[1749242587260,7.25820057,149.95,149.93,6.665]
[1749242587457,2.55433596,149.94,149.93,6.665]
[1749242587651,7.00383271,149.95,149.93,6.665]
[1749242587852,2.55433596,149.94,149.93,0.04253407]
[1749242588056,7.00387272,149.94,149.93,0.04253407]
[1749242588655,7.03466805,149.94,149.93,0.04253407]
[1749242588850,9.81383172,149.94,149.93,0.04253407]
[1749242589051,9.81387688,149.94,149.93,0.04253407]
[1749242589257,7.075723,149.94,149.93,0.04253407]
[1749242589864,7.075723,149.94,149.93,6.70783407]
[1749242590266,2.57056098,149.94,149.93,6.70783407]
[1749242590563,4.50498853,149.94,149.93,6.70783407]
[1749242590757,0.04585592,149.95,149.94,6.6649]
[1749242590966,7.12398706,149.95,149.94,6.6649]
[1749242591163,7.12399394,149.95,149.94,6.6649]
[1749242591362,7.12517202,149.95,149.94,6.6649]
[1749242591563,7.12546056,149.95,149.94,6.6649]
[1749242592265,7.07890015,149.95,149.94,6.6649]
[1749242592461,2.62022502,149.95,149.94,6.6649]
[1749242592760,7.07880022,149.95,149.94,13.92310057]
[1749242593267,35.14,149.99,149.98,6.6631]
[1749242593964,35.14,149.99,149.97,6.6633]
[1749242594165,35.14,149.99,149.97,6.70691188]
[1749242594166,35.18631657,149.99,149.97,6.70691188]
[1749242594363,42.44451714,149.99,149.97,16.70691188]
[1749242594667,42.44451714,149.99,149.98,6.6631]
[1749242599775,42.44451714,149.99,149.97,16.70701188]
[1749242600067,49.10721714,149.99,149.97,10.04361188]
[1749242600865,49.10721714,149.99,149.97,16.70711188]
[1749242601362,42.44451714,149.99,149.97,16.70711188]
[1749242601767,35.18631657,149.99,149.98,6.6631]
[1749242605879,35.18631657,149.99,149.97,10.04361188]
[1749242606173,35.18631657,149.99,149.98,6.6631]
[1749242608875,42.44451714,149.99,149.97,10.04361188]
[1749242609078,42.44451714,149.99,149.97,0.04361188]
[1749242609277,49.10751714,149.99,149.97,0.04361188]
[1749242609468,42.44451714,149.99,149.97,10.04361188]
[1749242609671,42.44451714,149.99,149.91,2.1176]
[1749242609873,7.25820057,149.96,149.91,2.1176]
[1749242610073,7.25820057,149.96,149.89,35.12]
[1749242610274,7.25820057,149.94,149.88,11.78310057]
[1749242610470,11.65692252,149.94,149.88,4.5249]
[1749242610676,7.30621882,149.92,149.91,6.6659]
[1749242611372,7.30621882,149.92,149.9,0.04520877]
[1749242611580,13.97211882,149.92,149.9,0.04520877]
[1749242611773,36.26,149.91,149.9,0.04520877]
[1749242612172,36.26,149.91,149.9,10.04520877]
[1749242612573,42.9262,149.91,149.9,10.04520877]
[1749242613373,43.51820057,149.91,149.9,10.04520877]
[1749242614073,50.18440057,149.91,149.9,10.04520877]
[1749242615776,0.04801825,149.92,149.9,10.04520877]
[1749242616681,0.04801825,149.92,149.91,6.6662]
[1749242624492,0.04801825,149.92,149.91,16.6662]
[1749242632208,36.28,149.96,149.91,17.25820057]
[1749242633207,0.0419102,149.95,149.91,17.25820057]
[1749242633803,0.0419102,149.95,149.94,6.6649]
[1749242639412,0.0419102,149.95,149.94,16.6649]
[1749242641014,0.0419102,149.95,149.94,10.0]
[1749242642717,0.0419102,149.95,149.94,16.6649]
[1749242643419,0.0419102,149.95,149.94,10.0]
[1749242644622,0.0419102,149.95,149.94,16.6649]
[1749242645723,0.0419102,149.95,149.94,10.0]
[1749242646620,6.7063102,149.95,149.94,10.0]
[1749242646823,13.96451077,149.95,149.94,10.0]
[1749242647526,6.7063102,149.95,149.94,10.0]
[1749242647725,13.96451077,149.95,149.94,10.0]
[1749242647919,6.7063102,149.95,149.94,10.0]
[1749242648120,13.96451077,149.95,149.94,10.0]
[1749242651921,7.30011077,149.95,149.85,13.41597047]
[1749242652228,7.25820057,149.92,149.89,6.6668]
[1749242652428,35.84,149.91,149.89,6.6668]
[1749242652826,35.88637184,149.91,149.89,6.71695135]
[1749242653930,42.55257184,149.91,149.89,0.05015135]
[1749242654128,35.88637184,149.91,149.89,0.05015135]
[1749242654428,35.88637184,149.91,149.89,10.05015135]
[1749242654931,7.25820057,149.9,149.89,10.05015135]
[1749242655422,35.88637184,149.91,149.89,10.05015135]
[1749242655624,43.14457241,149.91,149.89,10.05015135]
[1749242656224,43.14457241,149.91,149.89,16.71725135]
[1749242656425,43.14457241,149.91,149.89,10.05015135]
[1749242657831,6.6666,149.9,149.89,10.05015135]
[1749242658821,43.14457241,149.91,149.84,2.1722]
[1749242659022,35.84,149.91,149.85,6.6686]
[1749242659331,7.25820057,149.88,149.84,2.1722]
[1749242659533,35.84,149.87,149.84,2.1722]
[1749242659926,35.88996065,149.87,149.85,6.6686]
[1749242660726,35.88996065,149.87,149.85,16.6686]
[1749242664022,35.88996065,149.87,149.86,6.6684]
[1749242664734,35.88996065,149.87,149.85,16.6687]
[1749242665435,35.88996065,149.87,149.86,6.6684]
[1749242666233,42.55826065,149.87,149.85,10.0]
[1749242666436,7.25820057,149.86,149.85,10.0]
[1749242667334,35.88996065,149.87,149.77,125.83148682]
[1749242667531,35.84,149.87,149.77,127.96628682]
[1749242667826,7.25820057,149.85,149.77,127.96628682]
[1749242668432,0.04668621,149.82,149.8,0.05057324]
[1749242669031,0.04668621,149.82,149.8,10.05057324]
[1749242669530,0.04668621,149.82,149.81,6.6707]
[1749242673242,0.04668621,149.82,149.81,13.92890057]
[1749242673540,35.46,149.86,149.81,7.25820057]
[1749242673734,609.65926708,149.91,149.81,7.25820057]
[1749242673735,35.46,149.87,149.83,7.25820057]
[1749242673947,13.92540057,149.89,149.87,6.6678]
[1749242674235,35.46,149.88,149.87,6.6678]
[1749242674543,35.46,149.88,149.87,6.71497609]
[1749242675841,35.46,149.88,149.87,0.04717609]
[1749242676542,35.46,149.88,149.87,6.71517609]
[1749242677840,35.46,149.88,149.87,0.04717609]
[1749242678342,8.32887429,149.97,149.87,0.04717609]
[1749242678544,7.25820057,149.93,149.86,7.25820057]
[1749242678730,35.46,149.92,149.86,7.25820057]
[1749242678935,35.46,149.92,149.9,6.6663]
[1749242679540,35.50937044,149.92,149.9,6.7158078]
[1749242681145,35.50937044,149.92,149.9,0.0495078]
[1749242681343,7.25820057,149.91,149.9,0.0495078]
[1749242682747,13.92440057,149.91,149.9,0.0495078]
[1749242683846,7.25820057,149.91,149.9,0.0495078]
[1749242684446,7.25820057,149.91,149.9,10.0495078]
[1749242684653,13.92440057,149.91,149.9,10.0495078]
[1749242686249,6.6662,149.91,149.9,10.0495078]
[1749242686450,13.92440057,149.91,149.9,10.0495078]
[1749242690549,6.6679,149.88,149.83,2.201]
[1749242690852,35.46,149.87,149.84,6.669]
[1749242691446,42.128,149.87,149.84,6.669]
[1749242691648,42.17463094,149.87,149.84,6.71520972]
[1749242691843,0.04663094,149.87,149.84,7.30441029]
[1749242692155,7.25820057,149.92,149.86,7.25820057]
[1749242692347,7.25820057,149.92,149.89,6.6669]
[1749242692750,6.6659,149.92,149.89,6.6669]
[1749242692949,42.71820057,149.93,149.89,6.6669]
[1749242693149,0.04283326,149.92,149.9,0.04521156]
[1749242693346,0.04283326,149.92,149.9,6.71181156]
[1749242694852,0.04283326,149.92,149.9,0.04521156]
[1749242695449,6.70863326,149.92,149.9,0.04521156]
[1749242695648,7.25820057,149.91,149.9,0.04521156]
[1749242696147,7.25820057,149.91,149.84,10.0]
[1749242696351,7.25820057,149.89,149.86,6.6682]
[1749242696544,7.25820057,149.89,149.84,10.0]
[1749242696545,35.46,149.88,149.84,10.0]
[1749242697052,0.047141,149.87,149.85,6.71235146]
[1749242697248,0.047141,149.87,149.85,0.04355146]
[1749242697749,6.715141,149.87,149.85,0.04355146]
[1749242698955,0.047141,149.87,149.85,6.71235146]
[1749242700752,0.047141,149.87,149.86,6.6684]
[1749242702155,0.047141,149.87,149.85,0.04355146]
[1749242702650,7.25820057,149.86,149.85,0.04355146]
[1749242702850,7.25820057,149.86,149.84,10.0]
[1749242703354,13.92680057,149.86,149.84,10.0]
[1749242703755,7.25820057,149.86,149.84,10.04649975]
[1749242703955,6.6689,149.85,149.84,10.04649975]
[1749242704456,13.92710057,149.85,149.84,10.04649975]
[1749242705253,7.25820057,149.85,149.75,48.27597047]
[1749242705455,7.25820057,149.82,149.75,12.6280699]
[1749242705756,7.25820057,149.82,149.75,19.88627047]
[1749242706162,7.25820057,149.82,149.75,13.72850057]
[1749242706356,0.04334016,149.8,149.77,0.04464047]
[1749242706557,34.90334016,149.8,149.77,0.04464047]
[1749242706860,34.90334016,149.8,149.79,6.6715]
[1749242707156,34.90334016,149.8,149.79,16.6715]
[1749242712466,42.16154073,149.8,149.79,10.0]
[1749242714072,48.83264073,149.8,149.79,10.0]
[1749242715269,42.16154073,149.8,149.79,10.0]
[1749242717966,48.83264073,149.8,149.79,10.0]
[1749242723175,48.83264073,149.8,149.69,42.11820057]
[1749242723176,49.4197413,149.8,149.69,42.11820057]
[1749242723470,7.25820057,149.74,149.7,2.2212]
[1749242723973,34.88,149.75,149.7,2.2212]
[1749242724168,0.04523374,149.74,149.72,0.0497973]
[1749242724568,0.04523374,149.74,149.73,6.6742]
[1749242725174,0.04523374,149.74,149.73,16.6742]
[1749242728577,0.04523374,149.74,149.73,10.0]
[1749242729182,0.04523374,149.74,149.73,16.6742]
[1749242732575,34.88,149.78,149.73,17.25820057]
[1749242733079,34.88,149.78,149.77,6.6724]
[1749242737478,0.04798426,149.79,149.77,6.6724]
[1749242737680,0.04798426,149.79,149.78,6.672]
[1749242739881,0.04798426,149.79,149.77,6.6722]
[1749242740082,0.04798426,149.79,149.76,2.28168666]
[1749242740284,6.71958426,149.79,149.76,0.04448666]
[1749242740883,0.04798426,149.79,149.76,0.04448666]
[1749242741384,0.04798426,149.79,149.77,6.6724]
[1749242741585,6.71978426,149.79,149.77,6.6724]
[1749242741989,0.04798426,149.79,149.77,6.6724]
[1749242743186,6.71978426,149.79,149.77,6.6724]
[1749242743587,0.04798426,149.79,149.78,6.672]
[1749242743989,0.04798426,149.79,149.76,0.04448666]
[1749242744188,6.71958426,149.79,149.77,6.6721]
[1749242744585,6.71958426,149.79,149.77,16.6721]
[1749242745989,0.04798426,149.79,149.77,16.6721]
[1749242750793,0.04798426,149.79,149.78,6.672]
[1749242752297,0.04798426,149.79,149.77,16.6724]
[1749242752496,7.30618483,149.79,149.77,10.0]
[1749242754093,7.30618483,149.79,149.77,16.6724]
[1749242754601,7.30618483,149.79,149.77,10.0]
[1749242755399,13.97778483,149.79,149.77,10.0]
[1749242757203,34.68,149.78,149.77,10.0]
[1749242757895,34.68,149.78,149.77,16.6724]
[1749242767913,41.352,149.78,149.77,10.0]
[1749242768909,34.68,149.78,149.72,6.6744]
[1749242769213,7.25820057,149.75,149.72,6.6744]
[1749242769511,34.18,149.74,149.72,6.6744]
[1749242769910,34.22623376,149.74,149.73,6.6742]
[1749242770914,34.22623376,149.74,149.73,16.6742]
[1749242774808,34.22623376,149.74,149.73,10.0]
[1749242776215,34.22623376,149.74,149.73,16.6742]
[1749242782017,34.22623376,149.74,149.73,10.0]
[1749242783717,34.22623376,149.74,149.73,16.6742]
[1749242785018,34.22623376,149.74,149.73,10.0]
[1749242785724,40.90003376,149.74,149.73,10.0]
[1749242791828,170.98003376,149.74,149.73,10.0]
[1749242794725,6.6742,149.73,149.72,0.04726029]
[1749242794929,13.93240057,149.73,149.72,0.04726029]
[1749242795229,7.25820057,149.71,149.68,6.6762]
[1749242795431,34.2,149.7,149.68,6.6764]
[1749242796129,34.24322283,149.7,149.68,6.72064724]
[1749242796629,34.24322283,149.7,149.68,16.72064724]
[1749242800122,40.91882283,149.7,149.68,10.04424724]
[1749242800329,7.25820057,149.69,149.68,10.04424724]
[1749242800530,13.93420057,149.69,149.68,10.04424724]
[1749242801535,6.676,149.69,149.68,10.04424724]
[1749242801735,7.25820057,149.69,149.68,10.04424724]
[1749242802831,13.93420057,149.69,149.68,10.04424724]
[1749242811539,6.6773,149.67,149.61,10.7260829]
[1749242811744,13.93550057,149.67,149.61,4.551]
[1749242811937,33.84,149.66,149.61,4.551]
[1749242812436,33.84,149.66,149.63,6.6783]
[1749242812633,33.88842684,149.66,149.63,6.72764236]
[1749242813441,33.88842684,149.66,149.63,16.72764236]
[1749242813834,33.88842684,149.66,149.64,6.6781]
[1749242814439,33.88842684,149.66,149.64,6.6778]
[1749242814835,33.88842684,149.66,149.63,10.04934236]
[1749242815034,33.88842684,149.66,149.65,6.6778]
[1749242820539,221.60583374,149.74,149.63,10.04934236]
[1749242820540,33.86,149.69,149.68,6.6764]
[1749242820737,33.86,149.7,149.65,2.2252]
[1749242820943,33.86,149.7,149.66,4.3279]
[1749242821145,33.86,149.7,149.69,6.676]
[1749242821351,38.50569473,149.7,149.69,6.676]
[1749242823150,33.86,149.7,149.69,6.676]
[1749242828054,33.86,149.7,149.68,6.72425843]
[1749242828254,33.86,149.7,149.68,0.04805843]
[1749242828551,33.86,149.7,149.69,6.676]
[1749242830354,33.86,149.7,149.68,6.72425843]
[1749242832154,0.0475537,149.71,149.69,6.676]
[1749242832357,33.78,149.7,149.69,6.676]
[1749242834457,33.78,149.7,149.69,16.676]
[1749242840164,0.0475537,149.71,149.7,6.6755]
[1749242843662,4.69199555,149.71,149.69,16.6757]
[1749242845664,0.0475537,149.71,149.69,10.0]
[1749242845871,4.64444185,149.7,149.69,10.0]
[1749242846170,11.31994185,149.7,149.69,10.0]
[1749242846473,4.64444185,149.7,149.63,6.19212612]
[1749242846662,28.35887429,149.76,149.62,10.63852612]
[1749242846663,11.32184185,149.66,149.62,10.63852612]
[1749242846859,4.64444185,149.65,149.62,10.63852612]
[1749242847269,4.64444185,149.65,149.63,6.6787]
[1749242847472,4.69247959,149.65,149.63,6.72755463]
[1749242847769,4.69247959,149.65,149.63,0.04885463]
[1749242848159,4.69247959,149.65,149.64,6.6782]
[1749242849272,0.04803774,149.65,149.64,6.6782]
[1749242860179,0.04803774,149.65,149.63,16.72725463]
[1749242860881,7.31243617,149.65,149.63,10.04885463]
[1749242861480,7.31243617,149.65,149.63,16.72745463]
[1749242862483,7.31243617,149.65,149.64,6.6782]
[1749242864284,0.04803774,149.65,149.64,6.6782]
[1749242864487,0.04803774,149.65,149.64,16.6782]
[1749242879403,0.04803774,149.65,149.64,21.32582266]
[1749242879596,8.32887429,149.77,149.64,14.64762266]
[1749242879794,38.38762266,149.71,149.68,4.64762266]
[1749242879990,38.38762266,149.71,149.67,4.64762266]
[1749242880498,38.38762266,149.71,149.7,6.6752]
[1749242881001,38.38762266,149.71,149.69,6.72467939]
[1749242881198,38.38762266,149.71,149.69,0.04867939]
[1749242881693,38.38762266,149.71,149.69,6.72427939]
[1749242883294,33.74,149.71,149.69,6.72427939]
[1749242883491,33.74,149.71,149.69,0.04867939]
[1749242883492,40.4153,149.71,149.69,0.04867939]
[1749242884706,6.6755,149.7,149.69,0.04867939]
[1749242886106,13.93341923,149.7,149.69,0.04867939]
[1749242886604,0.04928132,149.72,149.71,6.6751]
[1749242886799,0.04928132,149.72,149.71,13.93301923]
[1749242887004,33.74,149.76,149.71,7.25791923]
[1749242887697,33.74,149.76,149.75,6.6733]
[1749242892905,33.74,149.76,149.74,6.71619115]
[1749242893595,33.74,149.76,149.75,6.6733]
[1749242894408,33.74,149.76,149.75,16.6733]
[1749242895106,33.74,149.76,149.75,10.0]
[1749242896005,40.4129,149.76,149.75,10.0]
[1749242896205,47.67081923,149.76,149.75,10.0]
[1749242899511,40.99791923,149.76,149.75,10.0]
[1749242899808,33.74,149.76,149.75,10.0]
[1749242900012,40.4129,149.76,149.75,10.0]
[1749242906416,47.67081923,149.76,149.75,10.0]
[1749242906914,40.4129,149.76,149.75,10.0]
[1749242907114,47.67081923,149.76,149.75,10.0]
[1749242911117,40.99791923,149.76,149.69,6.5937]
[1749242911318,4.64418254,149.72,149.69,11.23788254]
[1749242911616,4.64418254,149.72,149.71,6.675]
[1749242912018,4.64418254,149.72,149.7,0.0420602]
[1749242912219,4.64418254,149.72,149.7,6.7173602]
[1749242913013,4.64418254,149.72,149.7,16.7173602]
[1749242913219,0.04586537,149.73,149.71,6.6751]
[1749242914921,0.04586537,149.73,149.7,10.0420602]
[1749242915317,0.04586537,149.73,149.71,6.6748]
[1749242915714,0.04586537,149.73,149.7,10.0420602]
[1749242916017,0.04586537,149.73,149.71,6.6751]
[1749242916818,0.04586537,149.73,149.7,10.0420602]
[1749242916819,6.72026537,149.73,149.7,16.7173602]
[1749242917214,0.04586537,149.73,149.7,10.0420602]
[1749242917411,0.04586537,149.73,149.71,6.6749]
[1749242918124,6.72026537,149.73,149.7,10.0420602]
[1749242918516,0.04586537,149.73,149.7,10.0420602]
[1749242919021,0.04586537,149.73,149.71,6.6749]
[1749242920122,6.72006537,149.73,149.71,6.6749]
[1749242920324,6.72006537,149.73,149.7,16.7173602]
[1749242920928,6.72006537,149.73,149.71,6.6751]
[1749242921328,6.72006537,149.73,149.7,10.0420602]
[1749242921628,6.72006537,149.73,149.7,16.7173602]
[1749242924025,0.04586537,149.73,149.7,10.0420602]
[1749242924524,0.04586537,149.73,149.71,6.675]
[1749242924923,0.04586537,149.73,149.7,10.0420602]
[1749242924924,7.2566183,149.72,149.7,10.0420602]
[1749242925232,40.9566183,149.72,149.65,6.15657103]
[1749242925423,7.2566183,149.68,149.65,6.15657103]
[1749242925623,7.2566183,149.68,149.66,6.6771]
[1749242926133,7.30005771,149.68,149.66,6.72726575]
[1749242927030,7.30005771,149.68,149.66,0.05016575]
[1749242927428,7.30005771,149.68,149.66,10.05016575]
[1749242927626,7.30005771,149.68,149.66,16.72716575]
[1749242929022,7.30005771,149.68,149.67,6.6769]
[1749242933935,0.04343941,149.68,149.67,6.6769]
[1749242934537,0.04343941,149.68,149.66,10.05016575]
[1749242935232,4.69097395,149.68,149.66,10.05016575]
[1749242935830,4.64753454,149.67,149.66,10.05016575]
[1749242937229,33.74343941,149.68,149.66,10.05016575]
[1749242937832,33.74343941,149.68,149.67,6.6769]
[1749242939536,33.74343941,149.68,149.67,16.6769]
[1749242944943,33.74343941,149.68,149.67,10.0]
[1749242945334,40.41983941,149.68,149.67,10.0]
[1749242947339,33.74343941,149.68,149.62,8.8557]
[1749242947636,7.26345789,149.64,149.6,2.1768]
[1749242947837,6.6792,149.62,149.59,2.2941]
[1749242948141,40.98345789,149.64,149.59,2.2941]
[1749242948339,0.0483192,149.63,149.6,0.0511144]
[1749242948742,0.0483192,149.63,149.6,6.7308144]
[1749242948942,6.7270192,149.63,149.6,0.0511144]
[1749242949241,0.0483192,149.63,149.6,10.0511144]
[1749242949648,0.0483192,149.63,149.6,16.7308144]
[1749242949942,0.0483192,149.63,149.6,10.0511144]
[1749242950430,6.6794,149.62,149.6,10.0511144]
[1749242951347,6.7272192,149.63,149.6,10.0511144]
[1749242952345,6.6792,149.62,149.6,10.0511144]
[1749242956241,6.6796,149.61,149.6,10.0511144]
[1749242958347,6.6819,149.56,149.52,9.42565789]
[1749242958549,40.96345789,149.56,149.51,2.1181]
[1749242958751,40.96345789,149.56,149.51,6.6836]
[1749242958952,6.6825,149.55,149.51,6.6836]
[1749242959457,0.04681442,149.54,149.52,0.04507854]
[1749242959955,0.04681442,149.54,149.52,6.72867854]
[1749242960155,6.72951442,149.54,149.52,0.04507854]
[1749242960543,6.72951442,149.54,149.52,10.04507854]
[1749242960854,13.99297231,149.54,149.52,10.04507854]
[1749242961043,7.26345789,149.53,149.52,10.04507854]
[1749242963456,13.94655789,149.53,149.52,10.04507854]
[1749242964357,6.6837,149.52,149.48,6.685]
[1749242964658,40.98345789,149.51,149.48,6.685]
[1749242964847,40.98345789,149.51,149.49,6.6848]
[1749242965256,40.98345789,149.51,149.46,2.3034]
[1749242965456,0.0471819,149.5,149.47,0.04504828]
[1749242966160,0.0471819,149.5,149.47,10.04504828]
[1749242966661,0.0471819,149.5,149.48,6.6854]
[1749242967461,0.0471819,149.5,149.49,6.6849]
[1749242968562,0.0471819,149.5,149.48,6.6852]
[1749242970264,0.0471819,149.5,149.49,6.6849]
[1749242975468,33.72,149.54,149.49,2.253]
[1749242975674,33.72,149.54,149.5,9.42735789]
[1749242976161,33.72,149.54,149.5,2.1639]
[1749242976372,0.04443964,149.53,149.51,0.04226895]
[1749242976867,0.04443964,149.53,149.52,6.6832]
[1749242979776,0.04443964,149.53,149.51,6.72606895]
[1749242979970,0.04443964,149.53,149.51,0.04226895]
[1749242980272,6.6836,149.52,149.51,0.04226895]
[1749242981475,6.72773964,149.53,149.51,0.04226895]
[1749242982675,6.6836,149.52,149.51,0.04226895]
[1749242982871,0.04443964,149.53,149.51,0.04226895]
[1749242983475,6.72773964,149.53,149.51,0.04226895]
[1749242984377,6.72773964,149.53,149.51,10.04226895]
[1749242987872,6.6836,149.52,149.51,10.04226895]
[1749242988979,13.94705789,149.52,149.51,10.04226895]
[1749242989984,6.6841,149.51,149.46,4.4686]
[1749242990185,33.72,149.5,149.46,4.4686]
[1749242990486,33.72,149.5,149.48,6.685]
[1749242991086,33.76382825,149.5,149.48,6.72710201]
[1749242991891,33.76382825,149.5,149.48,16.72710201]
[1749242993491,40.44832825,149.5,149.48,16.72710201]
[1749242995693,6.6849,149.49,149.48,10.04210201]
[1749242996788,41.02728614,149.5,149.43,2.1621]
[1749242996789,6.686,149.47,149.44,6.6869]
[1749242996985,40.98345789,149.46,149.43,2.1621]
[1749242997192,33.72,149.45,149.43,2.1621]
[1749242997383,33.72,149.45,149.43,8.8494]
[1749242997585,33.72,149.45,149.43,2.1621]
[1749242997785,33.76348312,149.45,149.43,2.2132788]
[1749242998788,33.76348312,149.45,149.43,18.9005788]
[1749242999297,40.45018312,149.45,149.43,18.9005788]
[1749242999601,33.76348312,149.45,149.44,6.6872]
[1749243000193,33.76348312,149.45,149.43,10.0511788]
[1749243000995,7.26345789,149.44,149.43,10.0511788]
[1749243001491,13.95065789,149.44,149.43,10.0511788]
[1749243003701,7.26345789,149.44,149.43,10.0511788]
[1749243004002,33.76348312,149.45,149.43,10.0511788]
[1749243004305,41.02694101,149.45,149.43,10.0511788]
[1749243004689,41.02694101,149.45,149.43,16.7384788]
[1749243008094,41.02694101,149.45,149.43,10.0511788]
[1749243008702,41.02694101,149.45,149.43,16.7387788]
[1749243009203,33.76348312,149.45,149.43,10.0511788]
[1749243009405,33.76348312,149.45,149.44,6.6871]
[1749243009797,440.2903989,149.45,149.35,6.13640293]
[1749243010000,7.26345789,149.36,149.31,2.3038]
[1749243010199,33.74,149.35,149.31,2.3038]
[1749243010408,33.74,149.35,149.32,6.6922]
[1749243010599,33.74,149.35,149.31,2.3038]
[1749243010799,0.05052459,149.34,149.33,6.6921]
[1749243011807,0.05052459,149.34,149.33,16.6921]
[1749243015096,2.459e-05,149.34,149.33,16.6921]
[1749243024708,33.74,149.41,149.33,10.0]
[1749243024906,33.74,149.41,149.35,7.26345789]
[1749243025610,41.00345789,149.41,149.33,10.0]
[1749243025813,0.05082376,149.38,149.36,0.04529699]
[1749243026212,0.05082376,149.38,149.37,6.6903]
[1749243029716,0.05082376,149.38,149.37,16.6903]
[1749243035918,0.05082376,149.38,149.37,10.0]
[1749243037820,0.05082376,149.38,149.37,16.6903]
[1749243038022,7.31428165,149.38,149.37,10.0]
[1749243038616,14.00408165,149.38,149.37,10.0]
[1749243038820,7.31428165,149.38,149.31,2.3038]
[1749243039022,13.95445789,149.36,149.33,6.6916]
[1749243039719,7.26345789,149.36,149.33,0.04644986]
[1749243039921,7.26345789,149.34,149.33,0.04644986]
[1749243040822,7.26345789,149.34,149.33,10.04644986]
[1749243041024,13.95505789,149.34,149.33,10.04644986]
[1749243042023,13.95505789,149.34,149.33,5.68918997]